bitfinex/quotes_SOLUSD_20241121
["timestamp","ask_amount","ask_price","bid_price","bid_amount"]
[1732170146282,0.5,237.54,237.52,15.27739334]
[1732170146598,0.5,237.53,237.48,15.27739334]
[1732170146891,0.5,237.53,237.52,15.27739334]
[1732170151388,1.0,237.51,237.5,15.27739334]
[1732170153197,1.0,237.53,237.5,15.27739334]
[1732170153497,1.0,237.53,237.52,15.27739334]
[1732170153680,0.5,237.51,237.5,15.27739334]
[1732170153875,1.0,237.51,237.5,15.27739334]
[1732170156679,1.0,237.51,237.5,9.78274729]
[1732170156989,1.0,237.51,237.4,4.34859216]
[1732170156990,0.5,237.45,237.39,32.6327]
[1732170157199,0.5,237.45,237.44,9.78274729]
[1732170157583,0.5,237.47,237.44,9.78274729]
[1732170157782,0.5,237.45,237.39,32.6327]
[1732170157991,0.5,237.45,237.44,9.78274729]
[1732170158302,1.682279,237.45,237.44,9.78274729]
[1732170158713,2.682279,237.45,237.39,32.6327]
[1732170159010,2.182279,237.45,237.44,9.78274729]
[1732170159306,2.682279,237.45,237.44,9.78274729]
[1732170160210,1.0,237.43,237.42,9.78274729]
[1732170161690,0.5,237.43,237.42,9.78274729]
[1732170163303,1.682279,237.45,237.42,9.78274729]
[1732170163506,1.682279,237.45,237.44,9.78274729]
[1732170164092,2.182279,237.45,237.44,9.78274729]
[1732170164304,2.682279,237.45,237.44,9.78274729]
[1732170164684,1.682279,237.45,237.44,9.78274729]
[1732170164897,1.682279,237.45,237.44,14.34127173]
[1732170165111,1.0,237.51,237.44,9.78274729]
[1732170165399,0.5,237.49,237.39,4.75652537]
[1732170165801,0.5,237.47,237.36,4.55852444]
[1732170166002,0.5,237.47,237.37,28.12547616]
[1732170166713,0.5,237.47,237.46,15.28830416]
[1732170166896,0.5,237.44,237.38,4.55852444]
[1732170167207,0.5,237.44,237.37,4.34859216]
[1732170167208,0.5,237.44,237.43,15.28830416]
[1732170168643,0.5,237.46,237.43,15.28830416]
[1732170168786,0.5,237.44,237.37,4.34859216]
[1732170168990,0.5,237.44,237.43,15.28830416]
[1732170169402,0.5,237.46,237.43,15.28830416]
[1732170169604,0.5,237.48,237.45,15.28830416]
[1732170169912,0.5,237.45,237.37,4.34859216]
[1732170170312,0.5,237.48,237.37,4.34859216]
[1732170170515,0.5,237.48,237.47,15.28830416]
[1732170171492,2.182279,237.5,237.47,15.28830416]
[1732170171809,0.5,237.46,237.37,4.34859216]
[1732170171988,0.5,237.46,237.37,8.9071166]
[1732170173389,0.5,237.46,237.45,15.28830416]
[1732170174894,0.5,237.48,237.45,15.28830416]
[1732170175094,2.182279,237.5,237.47,15.28830416]
[1732170175507,1.682279,237.5,237.49,15.28830416]
[1732170175711,2.182279,237.5,237.49,15.28830416]
[1732170176311,1.682279,237.5,237.49,15.28830416]
[1732170177613,0.5,237.54,237.49,15.28830416]
[1732170177814,0.5,237.54,237.53,15.28830416]
[1732170178313,13.7098,237.54,237.53,15.28830416]
[1732170180197,0.5,237.56,237.53,15.28830416]
[1732170180395,0.5,237.58,237.55,15.28830416]
[1732170180594,0.5,237.58,237.49,4.55852444]
[1732170180595,0.5,237.58,237.57,15.28830416]
[1732170181108,13.7773,237.58,237.57,15.28830416]
[1732170182823,13.2773,237.58,237.57,15.28830416]
[1732170183024,0.5,237.62,237.57,30.57660832]
[1732170183230,0.5,237.59,237.51,5.27890871]
[1732170183533,1.0,237.57,237.51,5.27890871]
[1732170183701,0.5,237.54,237.48,19.63689632]
[1732170184003,0.5,237.54,237.48,15.28830416]
[1732170184204,0.5,237.52,237.48,15.28830416]
[1732170184614,0.5,237.52,237.51,15.28830416]
[1732170186025,0.5,237.54,237.51,15.28830416]
[1732170186228,0.5,237.56,237.53,15.28830416]
[1732170186403,0.5,237.56,237.55,15.28830416]
[1732170188617,13.7773,237.6,237.55,20.56721287]
[1732170188818,13.7773,237.6,237.59,15.28830416]
[1732170189208,13.2773,237.6,237.59,15.28830416]
[1732170189822,13.2773,237.6,237.59,30.57660832]
[1732170190129,13.2773,237.6,237.59,15.28830416]
[1732170190519,13.7773,237.6,237.59,15.28830416]
[1732170192526,13.2773,237.6,237.59,15.28830416]
[1732170192730,0.5,237.62,237.59,30.57660832]
[1732170193027,13.2773,237.63,237.61,15.28830416]
[1732170193323,13.2773,237.63,237.62,15.28830416]
[1732170194031,0.5,237.66,237.62,15.28830416]
[1732170194331,13.7773,237.66,237.65,15.28830416]
[1732170194535,1.0,237.68,237.65,15.28830416]
[1732170194830,1.0,237.7,237.67,15.28830416]
[1732170195027,0.5,237.68,237.6,15.28830416]
[1732170195331,0.5,237.7,237.6,15.91926467]
[1732170195549,0.5,237.69,237.68,15.28830416]
[1732170198535,1.0,237.74,237.68,30.57660832]
[1732170198832,14.1831,237.75,237.73,15.28830416]
[1732170199035,0.5,237.78,237.74,20.96428871]
[1732170199331,0.5,237.78,237.77,15.28830416]
[1732170199509,0.5,237.8,237.77,15.28830416]
[1732170199832,0.5,237.8,237.79,15.28830416]
[1732170200126,30.3294,237.87,237.79,15.28830416]
[1732170200127,1.0,237.84,237.79,30.57660832]
[1732170200326,1.0,237.86,237.83,30.57660832]
[1732170200532,1.0,237.86,237.85,15.28830416]
[1732170201138,0.5,237.86,237.85,15.28830416]
[1732170201318,14.6831,237.88,237.85,15.28830416]
[1732170201517,14.6831,237.88,237.87,15.28830416]
[1732170202138,1.0,237.88,237.87,15.28830416]
[1732170202340,1.0,237.86,237.85,15.28830416]
[1732170205215,0.5,237.81,237.75,5.67598455]
[1732170205436,1.0,237.81,237.8,15.28830416]
[1732170206518,0.5,237.81,237.8,15.28830416]
[1732170206717,1.0,237.81,237.8,15.28830416]
[1732170208124,1.0,237.77,237.76,15.28830416]
[1732170210346,0.5,237.77,237.76,15.28830416]
[1732170210937,0.5,237.79,237.76,15.28830416]
[1732170211144,1.0,237.79,237.78,15.28830416]
[1732170212240,0.5,237.79,237.78,15.28830416]
[1732170212547,1.0,237.79,237.78,15.28830416]
[1732170214859,1.0,237.75,237.74,15.28830416]
[1732170216526,1.0,237.75,237.74,20.96428871]
[1732170216732,0.5,237.75,237.74,20.96428871]
[1732170217231,0.5,237.75,237.74,15.28830416]
[1732170217848,1.0,237.75,237.74,15.28830416]
[1732170220250,0.5,237.75,237.74,15.28830416]
[1732170220956,1.0,237.75,237.74,15.28830416]
[1732170228137,0.5,237.75,237.74,20.96428871]
[1732170228450,38.32397145,237.97,237.85,70.0]
[1732170228689,38.32397145,237.97,237.75,0.5]
[1732170228690,18.52227018,238.13,238.04,0.5]
[1732170228961,82.22653766,238.26,238.22,0.5]
[1732170229135,17.2399139,238.33,238.22,0.5]
[1732170229342,0.4691089,238.33,238.26,21.03731348]
[1732170229556,0.5,238.46,238.3,0.5]
[1732170229737,15.288304,238.47,238.41,15.28830416]
[1732170229942,15.28830416,238.51,238.34,0.5]
[1732170229943,12.5863,238.5,238.34,0.5]
[1732170230164,12.5863,238.5,238.35,7.41498346]
[1732170230165,12.0863,238.5,238.35,7.41498346]
[1732170230345,12.0863,238.5,238.41,15.28830416]
[1732170230538,12.0863,238.5,238.36,0.62920482]
[1732170230539,12.0863,238.5,238.43,15.28830416]
[1732170230939,12.0863,238.5,238.43,22.70328762]
[1732170231173,16.28830416,238.49,238.39,15.28830416]
[1732170231361,15.28830416,238.47,238.39,15.28830416]
[1732170231665,15.28830416,238.47,238.39,21.84357746]
[1732170231960,15.28830416,238.47,238.39,15.28830416]
[1732170232564,15.28830416,238.42,238.41,6.5552733]
[1732170232767,23.776884,238.41,238.39,6.5552733]
[1732170232958,12.0863,238.5,238.41,0.5]
[1732170233147,12.0863,238.5,238.44,24.28754676]
[1732170233352,36.37384676,238.5,238.42,24.78754676]
[1732170233959,36.37384676,238.5,238.42,24.28754676]
[1732170234162,23.776884,238.49,238.42,24.78754676]
[1732170234360,23.776884,238.49,238.42,24.28754676]
[1732170234858,36.37384676,238.5,238.42,24.28754676]
[1732170235061,36.37384676,238.5,238.44,24.28754676]
[1732170235656,36.37384676,238.5,238.42,24.28754676]
[1732170235866,36.37384676,238.5,238.43,24.28754676]
[1732170236215,12.0863,238.5,238.43,24.28754676]
[1732170236467,36.37384676,238.5,238.42,24.28754676]
[1732170236758,53.13165376,238.5,238.42,24.28754676]
[1732170237660,24.28754676,238.49,238.41,24.78754676]
[1732170237864,28.844107,238.5,238.42,24.28754676]
[1732170237865,53.13165376,238.5,238.42,24.28754676]
[1732170238164,53.13165376,238.5,238.43,24.28754676]
[1732170238662,24.28754676,238.49,238.42,24.28754676]
[1732170239064,24.28754676,238.48,238.41,24.78754676]
[1732170239361,24.28754676,238.43,238.37,0.5]
[1732170239566,24.28754676,238.42,238.36,5.6098989]
[1732170240070,24.28754676,238.41,238.36,5.6098989]
[1732170240370,24.28754676,238.39,238.36,5.6098989]
[1732170240743,28.844107,238.5,238.36,5.6098989]
[1732170240944,24.28754676,238.42,238.36,5.6098989]
[1732170241251,24.28754676,238.41,238.36,5.6098989]
[1732170241451,24.28754676,238.4,238.36,5.6098989]
[1732170241649,35.04564434,238.5,238.36,5.6098989]
[1732170241650,24.28754676,238.37,238.36,5.6098989]
[1732170242156,4.193,238.49,238.36,5.6098989]
[1732170242358,24.28754676,238.37,238.36,5.6098989]
[1732170242972,24.28754676,238.38,238.36,5.6098989]
[1732170243168,24.28754676,238.37,238.36,5.6098989]
[1732170245371,24.28754676,238.37,238.24,24.28754676]
[1732170245553,24.28754676,238.29,238.22,24.28754676]
[1732170245955,24.28754676,238.28,238.21,24.78754676]
[1732170246157,24.28754676,238.28,238.21,24.28754676]
[1732170246364,24.28754676,238.25,238.19,0.5]
[1732170246559,12.4694,238.31,238.15,0.5]
[1732170246776,12.4694,238.31,238.17,24.28754676]
[1732170247075,12.4694,238.31,238.15,0.5]
[1732170247254,12.4694,238.31,238.13,0.5]
[1732170247456,12.4694,238.31,238.15,0.5]
[1732170247878,12.4694,238.31,238.28,24.28754676]
[1732170248056,12.4694,238.31,238.29,24.28754676]
[1732170248258,12.4694,238.31,238.28,24.28754676]
[1732170248554,12.4694,238.31,238.25,24.28754676]
[1732170248754,24.28754676,238.29,238.21,24.28754676]
[1732170248960,24.28754676,238.29,238.22,24.28754676]
[1732170249162,36.75694676,238.31,238.25,24.28754676]
[1732170249361,12.4694,238.31,238.23,0.5]
[1732170249592,12.4694,238.31,238.26,24.28754676]
[1732170249754,12.4694,238.31,238.25,24.28754676]
[1732170249960,12.4694,238.31,238.28,24.28754676]
[1732170250177,12.4694,238.31,238.27,24.28754676]
[1732170250766,12.4694,238.31,238.26,24.28754676]
[1732170250965,12.4694,238.31,238.25,24.28754676]
[1732170251204,12.4694,238.31,238.24,24.28754676]
[1732170251205,36.75694676,238.31,238.24,24.28754676]
[1732170251576,36.75694676,238.31,238.21,24.28754676]
[1732170251577,24.28754676,238.29,238.21,24.28754676]
[1732170251783,24.28754676,238.24,238.17,24.28754676]
[1732170252160,24.28754676,238.23,238.16,24.28754676]
[1732170252673,16.77617,238.23,238.19,24.28754676]
[1732170252854,24.28754676,238.3,238.22,24.28754676]
[1732170253054,24.28754676,238.3,238.23,24.28754676]
[1732170253469,12.4694,238.31,238.25,24.28754676]
[1732170253665,36.75694676,238.31,238.24,24.28754676]
[1732170253866,16.771767,238.3,238.23,24.28754676]
[1732170254383,41.05931376,238.3,238.23,24.28754676]
[1732170255366,16.771767,238.3,238.24,24.28754676]
[1732170255768,16.771767,238.3,238.25,24.28754676]
[1732170255967,16.771767,238.3,238.24,24.28754676]
[1732170256576,16.771767,238.3,238.11,6.34940672]
[1732170256577,16.771767,238.3,238.28,24.28754676]
[1732170256985,16.771767,238.3,238.26,24.28754676]
[1732170257574,16.771767,238.3,238.29,24.28754676]
[1732170257781,16.771767,238.3,238.29,24.78754676]
[1732170257982,36.33394676,238.39,238.29,24.78754676]
[1732170258182,12.0464,238.39,238.32,24.28754676]
[1732170258481,12.0464,238.39,238.33,24.28754676]
[1732170259583,36.33394676,238.39,238.31,24.28754676]
[1732170264582,12.0464,238.39,238.33,24.28754676]
[1732170265166,28.812082,238.39,238.33,24.28754676]
[1732170265984,53.09962876,238.39,238.31,24.28754676]
[1732170266778,53.09962876,238.39,238.31,24.78754676]
[1732170267095,53.09962876,238.39,238.31,24.28754676]
[1732170267388,24.28754676,238.37,238.29,24.78754676]
[1732170267798,28.812082,238.39,238.3,0.5]
[1732170267799,53.09962876,238.39,238.3,0.5]
[1732170268097,53.09962876,238.39,238.31,24.28754676]
[1732170268273,28.812082,238.39,238.31,24.28754676]
[1732170269181,28.812082,238.39,238.33,24.28754676]
[1732170269377,16.765682,238.39,238.35,24.28754676]
[1732170269619,16.765682,238.39,238.38,0.5]
[1732170269900,12.2656,238.46,238.38,1.0]
[1732170270080,12.2656,238.46,238.42,24.28754676]
[1732170270482,12.2656,238.46,238.44,24.28754676]
[1732170271201,16.758184,238.45,238.44,24.28754676]
[1732170271402,36.51014676,238.52,238.44,25.28754676]
[1732170271774,53.26612576,238.52,238.44,25.28754676]
[1732170271980,28.978579,238.52,238.48,24.28754676]
[1732170272604,16.755979,238.52,238.5,24.78754676]
[1732170273083,24.75665566,238.57,238.5,24.78754676]
[1732170273279,24.28754676,238.55,238.49,0.5]
[1732170273600,24.28754676,238.56,238.5,0.5]
[1732170273904,24.28754676,238.56,238.49,24.78754676]
[1732170274073,24.28754676,238.54,238.47,24.78754676]
[1732170274275,24.28754676,238.55,238.49,0.5]
[1732170274796,24.28754676,238.56,238.49,24.78754676]
[1732170275700,24.75665566,238.57,238.5,24.78754676]
[1732170276684,16.752122,238.56,238.52,0.5]
[1732170277176,16.752122,238.56,238.53,24.28754676]
[1732170277381,16.752122,238.56,238.52,0.5]
[1732170277382,0.4691089,238.57,238.55,24.28754676]
[1732170277589,0.4691089,238.57,238.56,24.78754676]
[1732170284287,0.4691089,238.57,238.56,49.07509352]
[1732170284482,0.4691089,238.57,238.56,24.78754676]
[1732170284687,0.4691089,238.57,238.56,0.5]
[1732170284904,0.4691089,238.57,238.56,1.0]
[1732170286699,0.4691089,238.57,238.54,24.78754676]
[1732170286892,24.28754676,238.55,238.5,0.5]
[1732170287097,0.4691089,238.57,238.52,0.5]
[1732170287320,0.4691089,238.57,238.54,0.5]
[1732170287515,0.4691089,238.57,238.52,0.5]
[1732170287816,0.4691089,238.57,238.54,0.5]
[1732170288519,0.4691089,238.57,238.51,0.5]
[1732170288825,24.75665566,238.57,238.5,24.28754676]
[1732170288999,24.28754676,238.55,238.51,0.5]
[1732170289305,24.28754676,238.55,238.47,24.78754676]
[1732170289627,0.4691089,238.57,238.47,24.78754676]
[1732170289628,24.28754676,238.54,238.47,24.28754676]
[1732170289801,24.28754676,238.53,238.47,0.5]
[1732170290120,24.06154576,238.53,238.46,24.28754676]
[1732170290324,24.28754676,238.51,238.44,24.78754676]
[1732170290498,24.28754676,238.51,238.45,0.5]
[1732170290910,24.28754676,238.51,238.44,24.28754676]
[1732170291097,24.28754676,238.49,238.43,0.5]
[1732170291309,24.28754676,238.5,238.44,0.5]
[1732170291808,24.28754676,238.45,238.41,6.67456818]
[1732170292015,24.28754676,238.43,238.41,0.5]
[1732170292208,24.28754676,238.46,238.41,1.0]
[1732170292391,24.28754676,238.47,238.41,1.0]
[1732170292793,24.28754676,238.48,238.41,25.28754676]
[1732170293108,24.28754676,238.47,238.41,1.0]
[1732170293422,12.8589,238.52,238.33,6.67456818]
[1732170293423,24.28754676,238.46,238.39,24.78754676]
[1732170293797,12.8589,238.52,238.45,24.78754676]
[1732170293997,12.8589,238.52,238.47,0.5]
[1732170295004,12.8589,238.52,238.46,24.28754676]
[1732170295214,12.8589,238.52,238.47,0.5]
[1732170295404,31.03702743,238.57,238.49,24.78754676]
[1732170295611,0.4691089,238.57,238.52,24.28754676]
[1732170297702,0.4691089,238.57,238.54,24.28754676]
[1732170298116,0.4691089,238.57,238.54,25.28754676]
[1732170299423,0.4691089,238.57,238.52,24.78754676]
[1732170299599,0.4691089,238.57,238.54,24.78754676]
[1732170299797,0.4691089,238.57,238.54,24.28754676]
[1732170300409,0.4691089,238.57,238.52,24.78754676]
[1732170300604,0.4691089,238.57,238.52,24.28754676]
[1732170300923,0.4691089,238.57,238.5,24.28754676]
[1732170301109,24.75665566,238.57,238.5,24.28754676]
[1732170301428,0.4691089,238.57,238.51,1.0]
[1732170301912,0.4691089,238.57,238.5,24.28754676]
[1732170302106,24.75665566,238.57,238.5,24.28754676]
[1732170302313,24.28754676,238.55,238.48,24.78754676]
[1732170302722,24.28754676,238.55,238.46,24.28754676]
[1732170302928,24.28754676,238.53,238.46,24.28754676]
[1732170303223,0.4691089,238.57,238.52,24.28754676]
[1732170303436,0.4691089,238.57,238.5,24.28754676]
[1732170303619,24.75665566,238.57,238.48,24.28754676]
[1732170303815,24.28754676,238.55,238.48,24.28754676]
[1732170304010,0.4691089,238.57,238.48,24.28754676]
[1732170304231,24.28754676,238.56,238.48,24.28754676]
[1732170307905,0.4691089,238.57,238.52,24.78754676]
[1732170308233,0.4691089,238.57,238.55,24.28754676]
[1732170310322,0.4691089,238.57,238.53,24.28754676]
[1732170310721,0.4691089,238.57,238.51,24.28754676]
[1732170311314,24.28754676,238.55,238.48,0.5]
[1732170311841,24.28754676,238.51,238.43,24.78754676]
[1732170312129,24.28754676,238.51,238.43,24.28754676]
[1732170312333,24.28754676,238.49,238.41,24.28754676]
[1732170312943,24.28754676,238.49,238.41,24.78754676]
[1732170314612,24.28754676,238.49,238.41,24.28754676]
[1732170315010,19.26231889,238.52,238.4,0.5]
[1732170315236,24.28754676,238.48,238.4,0.5]
[1732170318337,24.28754676,238.46,238.37,24.78754676]
[1732170318520,24.28754676,238.46,238.37,25.28754676]
[1732170318717,24.28754676,238.46,238.37,24.78754676]
[1732170318935,24.28754676,238.46,238.38,0.5]
[1732170319139,24.28754676,238.46,238.39,24.28754676]
[1732170320639,15.17389742,238.46,238.38,15.67389742]
[1732170321739,15.17389742,238.48,238.4,15.17389742]
[1732170325139,15.17389742,238.51,238.44,0.5]
[1732170325438,15.17389742,238.51,238.44,15.67389742]
[1732170325946,15.17389742,238.51,238.43,0.5]
[1732170326150,15.17389742,238.49,238.41,6.95790151]
[1732170326445,15.17389742,238.49,238.43,0.5]
[1732170326637,15.17389742,238.49,238.42,0.5]
[1732170326943,15.17389742,238.49,238.43,0.5]
[1732170327724,15.17389742,238.49,238.41,6.95790151]
[1732170327943,15.17389742,238.47,238.41,6.95790151]
[1732170328128,15.17389742,238.43,238.37,0.5]
[1732170328329,15.17389742,238.43,238.36,15.67389742]
[1732170328330,15.17389742,238.43,238.36,0.5]
[1732170328931,4.1926,238.51,238.35,6.95790151]
[1732170328932,15.17389742,238.41,238.35,6.95790151]
[1732170329149,15.17389742,238.41,238.35,0.5]
[1732170329832,15.17389742,238.39,238.34,0.5]
[1732170330741,15.17389742,238.4,238.35,0.5]
[1732170331124,15.17389742,238.41,238.35,0.5]
[1732170331330,15.17389742,238.44,238.37,0.5]
[1732170331630,15.17389742,238.44,238.38,0.5]
[1732170332237,15.17389742,238.46,238.4,0.5]
[1732170332542,19.27570918,238.52,238.35,6.45790151]
[1732170332543,15.17389742,238.48,238.42,16.17389742]
[1732170332931,15.17389742,238.5,238.44,0.5]
[1732170333336,15.17389742,238.5,238.42,16.17389742]
[1732170333534,19.27570918,238.52,238.4,6.45790151]
[1732170333535,15.17389742,238.48,238.4,22.63179893]
[1732170333940,15.17389742,238.46,238.4,1.0]
[1732170334144,15.17389742,238.46,238.42,0.5]
[1732170334764,15.17389742,238.46,238.4,1.0]
[1732170334926,15.17389742,238.46,238.42,0.5]
[1732170335246,15.17389742,238.46,238.4,1.0]
[1732170335550,15.17389742,238.46,238.42,0.5]
[1732170335748,15.17389742,238.46,238.38,16.17389742]
[1732170335951,15.17389742,238.46,238.4,0.5]
[1732170336131,15.17389742,238.46,238.4,1.0]
[1732170338729,19.27570918,238.52,238.44,15.67389742]
[1732170338730,34.4496066,238.52,238.44,15.67389742]
[1732170339048,15.17389742,238.5,238.44,0.5]
[1732170340051,15.17389742,238.5,238.43,0.5]
[1732170340225,15.17389742,238.5,238.44,0.5]
[1732170340728,15.17389742,238.53,238.45,15.17389742]
[1732170341529,15.17389742,238.53,238.46,0.5]
[1732170341725,28.01684046,238.56,238.5,1.0]
[1732170341927,0.4691089,238.57,238.5,1.0]
[1732170342143,0.4691089,238.57,238.52,0.5]
[1732170342452,0.4691089,238.57,238.5,0.5]
[1732170342453,0.4691089,238.57,238.5,1.0]
[1732170342953,0.4691089,238.57,238.52,0.5]
[1732170343361,0.4691089,238.57,238.52,1.0]
[1732170344651,0.4691089,238.57,238.54,1.0]
[1732170345658,0.4691089,238.57,238.52,1.0]
[1732170346358,0.4691089,238.57,238.52,0.5]
[1732170346537,0.4691089,238.57,238.52,1.0]
[1732170347369,0.4691089,238.57,238.52,0.5]
[1732170347531,0.4691089,238.57,238.52,1.0]
[1732170347849,0.4691089,238.57,238.46,6.45790151]
[1732170347850,15.17389742,238.56,238.5,0.5]
[1732170348235,15.64300632,238.57,238.52,0.5]
[1732170349261,0.4691089,238.57,238.52,0.5]
[1732170349853,0.4691089,238.57,238.54,0.5]
[1732170350762,0.4691089,238.57,238.52,0.5]
[1732170351333,0.4691089,238.57,238.53,15.17389742]
[1732170353736,0.4691089,238.57,238.55,15.67389742]
[1732170354363,0.4691089,238.57,238.55,0.5]
[1732170357641,0.4691089,238.57,238.55,15.67389742]
[1732170358041,0.4691089,238.57,238.55,16.17389742]
[1732170361168,0.4691089,238.57,238.55,22.63179893]
[1732170361462,0.4691089,238.57,238.56,6.45790151]
[1732170362653,0.4691089,238.57,238.56,60.58258035]
[1732170363441,15.17389742,238.73,238.69,0.5]
[1732170364051,21.587889,238.76,238.71,0.5]
[1732170364253,15.173898,238.73,238.71,0.5]
[1732170365350,15.173898,238.73,238.72,15.17389742]
[1732170366569,15.173898,238.73,238.72,47.77419742]
[1732170366761,0.4691089,238.81,238.8,1.0]
[1732170366959,0.4691089,238.81,238.8,16.17389742]
[1732170367863,15.6430069,238.81,238.8,16.17389742]
[1732170369251,15.6430069,238.81,238.8,22.63179893]
[1732170369662,15.6430069,238.81,238.8,7.45790151]
[1732170370165,15.6430069,238.81,238.8,6.95790151]
[1732170370376,15.6430069,238.81,238.78,0.5]
[1732170370571,15.6430069,238.81,238.76,0.5]
[1732170370572,30.81690432,238.81,238.76,0.5]
[1732170370748,15.17389742,238.79,238.74,0.5]
[1732170370948,15.17389742,238.77,238.74,0.5]
[1732170371303,15.17389742,238.75,238.74,0.5]
[1732170372767,15.17389742,238.75,238.7,0.5]
[1732170372975,15.17389742,238.73,238.7,0.5]
[1732170373151,15.17389742,238.75,238.7,0.5]
[1732170373355,15.17389742,238.73,238.7,0.5]
[1732170373673,15.17389742,238.75,238.7,1.0]
[1732170374051,15.17389742,238.73,238.7,0.5]
[1732170374751,15.17389742,238.73,238.72,0.5]
[1732170374965,15.17389742,238.77,238.72,0.5]
[1732170375181,15.17389742,238.78,238.75,0.5]
[1732170375554,15.17389742,238.78,238.73,0.5]
[1732170375764,15.17389742,238.76,238.73,0.5]
[1732170376473,15.17389742,238.76,238.75,0.5]
[1732170376671,15.6430069,238.81,238.75,0.5]
[1732170376859,15.17389742,238.78,238.75,0.5]
[1732170377557,15.17389742,238.78,238.73,0.5]
[1732170377760,15.17389742,238.76,238.71,0.5]
[1732170378079,15.17389742,238.76,238.73,0.5]
[1732170379475,15.17389742,238.76,238.71,1.0]
[1732170379684,15.17389742,238.76,238.71,0.5]
[1732170380066,15.17389742,238.74,238.71,0.5]
[1732170380591,15.17389742,238.72,238.69,0.5]
[1732170380875,15.17389742,238.72,238.67,0.5]
[1732170381672,15.17389742,238.72,238.65,15.17389742]
[1732170381673,15.17389742,238.7,238.65,0.5]
[1732170381981,32.3429,238.76,238.65,0.5]
[1732170381982,15.17389742,238.68,238.65,0.5]
[1732170382181,15.17389742,238.68,238.63,0.5]
[1732170382378,15.17389742,238.68,238.65,0.5]
[1732170382684,15.17389742,238.68,238.63,0.5]
[1732170383188,15.17389742,238.69,238.65,1.0]
[1732170383964,15.17389742,238.71,238.65,1.0]
[1732170384158,15.17389742,238.73,238.67,0.5]
[1732170384471,15.17389742,238.71,238.67,0.5]
[1732170385280,15.17389742,238.69,238.65,1.0]
[1732170385660,15.17389742,238.67,238.63,0.5]
[1732170385873,15.17389742,238.65,238.63,0.5]
[1732170386077,15.17389742,238.65,238.61,0.5]
[1732170386283,15.17389742,238.63,238.61,1.0]
[1732170386460,15.17389742,238.65,238.63,0.5]
[1732170386785,15.17389742,238.65,238.59,1.0]
[1732170386960,15.17389742,238.62,238.57,1.0]
[1732170387165,13.047,238.66,238.57,0.5]
[1732170387166,15.17389742,238.6,238.57,0.5]
[1732170387467,15.17389742,238.6,238.57,1.0]
[1732170387677,15.17389742,238.6,238.57,0.5]
[1732170387981,13.047,238.66,238.53,1.0]
[1732170387982,15.17389742,238.58,238.53,1.0]
[1732170388190,15.17389742,238.56,238.53,1.0]
[1732170388764,15.17389742,238.56,238.55,0.5]
[1732170388972,15.17389742,238.56,238.53,1.0]
[1732170389179,15.17389742,238.56,238.55,0.5]
[1732170389866,15.17389742,238.56,238.52,0.5]
[1732170390098,15.17389742,238.58,238.54,1.0]
[1732170390380,15.17389742,238.58,238.56,0.5]
[1732170390892,15.17389742,238.6,238.58,0.5]
[1732170391182,15.17389742,238.6,238.56,1.0]
[1732170391358,15.17389742,238.57,238.56,0.5]
[1732170391688,15.17389742,238.59,238.58,0.5]
[1732170391989,15.17389742,238.59,238.56,0.5]
[1732170392187,15.17389742,238.57,238.56,0.5]
[1732170392691,15.17389742,238.65,238.59,0.5]
[1732170392982,15.17389742,238.65,238.61,0.5]
[1732170393971,15.17389742,238.62,238.59,0.5]
[1732170394492,13.047,238.66,238.57,0.5]
[1732170394493,15.17389742,238.6,238.57,0.5]
[1732170394667,13.047,238.66,238.55,0.5]
[1732170394668,15.17389742,238.58,238.55,0.5]
[1732170394863,15.17389742,238.56,238.55,0.5]
[1732170396681,15.17389742,238.56,238.53,0.5]
[1732170397500,15.17389742,238.54,238.49,0.5]
[1732170397792,15.17389742,238.5,238.47,0.5]
[1732170398468,16.755948,238.49,238.45,1.0]
[1732170398671,15.17389742,238.48,238.45,0.5]
[1732170399081,15.17389742,238.48,238.47,0.5]
[1732170399385,16.755948,238.49,238.47,0.5]
[1732170399790,15.17389742,238.48,238.47,0.5]
[1732170400285,16.755948,238.49,238.47,0.5]